fUSD/lending_fUSD_20250308
["ID","MTS","AMOUNT","RATE_DAILY","PERIOD"]
[355638015,1741416665863,-990.77,9.315e-05,2]
[355638016,1741416665872,-500.0,9.315e-05,2]
[355638017,1741416665881,-500.0,9.315e-05,2]
[355638018,1741416665889,-764.8,9.315e-05,2]
[355638019,1741416665899,-1033.22,9.315e-05,2]
[355638020,1741416665908,-500.0,9.315e-05,2]
[355638021,1741416665917,-1154.68,9.315e-05,2]
[355638022,1741416665927,-1177.51,9.315e-05,2]
[355638023,1741416665936,-443.06874148,9.315e-05,2]
[355638024,1741416665945,-731.91,9.315e-05,2]
[355638025,1741416665954,-500.0,9.315e-05,2]
[355638026,1741416665964,-500.0,9.315e-05,2]
[355638027,1741416665973,-500.0,9.315e-05,2]
[355638028,1741416665983,-777.92,9.315e-05,2]
[355638029,1741416665993,-667.88,9.315e-05,2]
[355638030,1741416666003,-500.0,9.315e-05,2]
[355638031,1741416666013,-1149.41,9.315e-05,2]
[355638032,1741416666023,-996.73,9.315e-05,2]
[355638033,1741416666032,-500.0,9.315e-05,2]
[355638034,1741416666042,-165.503875,9.315e-05,2]
[355638035,1741416666052,-500.0,9.315e-05,2]
[355638036,1741416666062,-500.0,9.315e-05,2]
[355638037,1741416666072,-979.4,9.315e-05,2]
[355638038,1741416666082,-749.83,9.315e-05,2]
[355638039,1741416666091,-500.0,9.315e-05,2]
[355638040,1741416666101,-647.26,9.315e-05,2]
[355638041,1741416666111,-964.61,9.315e-05,2]
[355638042,1741416666120,-625.3,9.315e-05,2]
[355638043,1741416666130,-519.7,9.315e-05,2]
[355638044,1741416666139,-592.38,9.315e-05,2]
[355638045,1741416666149,-1220.19,9.315e-05,2]
[355638046,1741416666159,-500.0,9.315e-05,2]
[355638047,1741416666169,-1298.81,9.315e-05,2]
[355638048,1741416666178,-500.0,9.315e-05,2]
[355638049,1741416666187,-580.12,9.315e-05,2]
[355638050,1741416666196,-1399.63,9.315e-05,2]
[355638051,1741416666206,-500.0,9.315e-05,2]
[355638052,1741416666215,-541.45,9.315e-05,2]
[355638053,1741416666225,-1392.07,9.315e-05,2]
[355638054,1741416666235,-1058.49,9.315e-05,2]
[355638055,1741416666244,-500.0,9.315e-05,2]
[355638056,1741416666254,-500.0,9.315e-05,2]
[355638057,1741416666263,-1250.4,9.315e-05,2]
[355638058,1741416666273,-500.0,9.315e-05,2]
[355638059,1741416666283,-1127.73,9.315e-05,2]
[355638060,1741416666292,-500.0,9.315e-05,2]
[355638061,1741416666302,-1018.16,9.315e-05,2]
[355638062,1741416666311,-165.503875,9.315e-05,2]
[355638063,1741416666321,-825.98,9.315e-05,2]
[355638064,1741416666330,-977.89,9.315e-05,2]
[355638065,1741416666340,-431.11686144,9.315e-05,2]
[355638066,1741416666349,-533.79,9.315e-05,2]
[355638067,1741416666358,-739.1,9.315e-05,2]
[355638068,1741416666367,-500.0,9.315e-05,2]
[355638069,1741416666376,-695.79,9.315e-05,2]
[355638070,1741416666385,-628.78,9.315e-05,2]
[355638071,1741416666394,-1328.04,9.315e-05,2]
[355638072,1741416666403,-1150.04,9.315e-05,2]
[355638073,1741416666412,-1846.11,9.315e-05,2]
[355638074,1741416666421,-1294.03,9.315e-05,2]
[355638075,1741416666430,-627.08,9.315e-05,2]
[355638076,1741416666438,-500.0,9.315e-05,2]
[355638077,1741416666447,-716.77,9.315e-05,2]
[355638078,1741416666456,-500.0,9.315e-05,2]
[355638079,1741416666465,-500.0,9.315e-05,2]
[355638080,1741416666474,-1209.74,9.315e-05,2]
[355638081,1741416666483,-500.0,9.315e-05,2]
[355638082,1741416666492,-1030.98,9.315e-05,2]
[355638083,1741416666501,-500.0,9.315e-05,2]
[355638084,1741416666516,-1315.4,9.315e-05,2]
[355638085,1741416666525,-1456.52,9.315e-05,2]
[355638086,1741416666534,-867.7,9.315e-05,2]
[355638087,1741416666543,-753.47,9.315e-05,2]
[355638088,1741416666553,-1262.29,9.315e-05,2]
[355638089,1741416666562,-1458.48,9.315e-05,2]
[355638090,1741416666571,-500.0,9.315e-05,2]
[355638091,1741416666581,-606.15,9.315e-05,2]
[355638092,1741416666593,-684.94,9.315e-05,2]
[355638093,1741416666604,-1584.46,9.315e-05,2]
[355638094,1741416666614,-1152.85,9.315e-05,2]
[355638095,1741416666623,-500.0,9.315e-05,2]
[355638096,1741416666633,-1835.46,9.315e-05,2]
[355638097,1741416666642,-500.0,9.315e-05,2]
[355638098,1741416666652,-500.0,9.315e-05,2]
[355638099,1741416666662,-970.17,9.315e-05,2]
[355638100,1741416666671,-500.0,9.315e-05,2]
[355638101,1741416666683,-1375.5,9.315e-05,2]
[355638102,1741416666692,-165.503875,9.315e-05,2]
[355638103,1741416666702,-500.0,9.315e-05,2]
[355638104,1741416666711,-1026.86,9.315e-05,2]
[355638105,1741416666720,-500.0,9.315e-05,2]
[355638106,1741416666729,-2041.72,9.315e-05,2]
[355638107,1741416666738,-943.38,9.315e-05,2]
[355638108,1741416666747,-1670.33,9.315e-05,2]
[355638109,1741416666756,-500.0,9.315e-05,2]
[355638110,1741416666767,-394.9219154,9.315e-05,2]
[355638111,1741416666776,-500.0,9.315e-05,2]
[355638112,1741416666784,-500.0,9.315e-05,2]
[355638113,1741416666794,-991.32,9.315e-05,2]
[355638114,1741416666803,-1037.41,9.315e-05,2]
[355638115,1741416666811,-500.0,9.315e-05,2]
[355638116,1741416666821,-775.11,9.315e-05,2]
[355638117,1741416666835,-1315.89,9.315e-05,2]
[355638118,1741416666846,-500.0,9.315e-05,2]
[355638119,1741416666855,-500.0,9.315e-05,2]
[355638120,1741416666863,-500.0,9.315e-05,2]
[355638121,1741416666872,-1009.44,9.315e-05,2]
[355638122,1741416666881,-1954.84,9.315e-05,2]
[355638123,1741416666891,-1961.98,9.315e-05,2]
[355638124,1741416666900,-945.38,9.315e-05,2]
[355638125,1741416666909,-812.14,9.315e-05,2]
[355638126,1741416666918,-500.0,9.315e-05,2]
[355638127,1741416666928,-500.0,9.315e-05,2]
[355638128,1741416666936,-925.58,9.315e-05,2]
[355638129,1741416666945,-855.17,9.315e-05,2]
[355638130,1741416666954,-1387.0,9.315e-05,2]
[355638131,1741416666963,-784.92,9.315e-05,2]
[355638132,1741416666972,-500.0,9.315e-05,2]
[355638133,1741416666983,-545.14,9.315e-05,2]
[355638134,1741416666993,-1907.82,9.315e-05,2]
[355638135,1741416667002,-500.0,9.315e-05,2]
[355638136,1741416667010,-1072.13,9.315e-05,2]
[355638137,1741416667019,-1116.24,9.315e-05,2]
[355638138,1741416667028,-1223.38,9.315e-05,2]
[355638139,1741416667040,-500.0,9.315e-05,2]
[355638140,1741416667049,-500.0,9.315e-05,2]
[355638141,1741416667058,-500.0,9.315e-05,2]
[355638142,1741416667067,-1595.48,9.315e-05,2]
[355638143,1741416667076,-500.0,9.315e-05,2]
[355638144,1741416667086,-1383.06,9.315e-05,2]
[355638145,1741416667095,-1355.44,9.315e-05,2]
[355638146,1741416667104,-500.0,9.315e-05,2]
[355638147,1741416667114,-1864.0,9.315e-05,2]
[355638148,1741416667123,-851.82,9.315e-05,2]
[355638149,1741416667132,-1068.79,9.315e-05,2]
[355638150,1741416667142,-500.0,9.315e-05,2]
[355638151,1741416667151,-1267.33,9.315e-05,2]
[355638152,1741416667161,-1232.94,9.315e-05,2]
[355638153,1741416667170,-2350.71,9.315e-05,2]
[355638154,1741416667180,-553.54,9.315e-05,2]
[355638155,1741416667189,-500.0,9.315e-05,2]
[355638156,1741416667199,-918.53,9.315e-05,2]
[355638157,1741416667208,-1104.38,9.315e-05,2]
[355638158,1741416667217,-1478.12,9.315e-05,2]
[355638159,1741416667227,-500.0,9.315e-05,2]
[355638160,1741416667236,-687.53,9.315e-05,2]
[355638161,1741416667245,-865.66,9.315e-05,2]
[355638162,1741416667254,-577.45615211,9.315e-05,2]
[355638163,1741416667263,-1596.46,9.315e-05,2]
[355638164,1741416667272,-1375.11,9.315e-05,2]
[355638165,1741416667281,-1696.49,9.315e-05,2]
[355638166,1741416667290,-1772.28,9.315e-05,2]
[355638167,1741416667299,-500.0,9.315e-05,2]
[355638168,1741416667308,-500.0,9.315e-05,2]
[355638169,1741416667317,-1713.9,9.315e-05,2]
[355638170,1741416667326,-840.1,9.315e-05,2]
[355638171,1741416667335,-500.0,9.315e-05,2]
[355638172,1741416667344,-2123.41,9.315e-05,2]
[355638173,1741416667353,-865.09,9.315e-05,2]
[355638174,1741416667362,-1685.83,9.315e-05,2]
[355638175,1741416667371,-753.85,9.315e-05,2]
[355638176,1741416667379,-904.05,9.315e-05,2]
[355638177,1741416667389,-666.45,9.315e-05,2]
[355638178,1741416667398,-2690.94,9.315e-05,2]
[355638179,1741416667407,-500.0,9.315e-05,2]
[355638180,1741416667416,-500.0,9.315e-05,2]
[355638181,1741416667426,-500.0,9.315e-05,2]
[355638182,1741416667435,-500.0,9.315e-05,2]
[355638183,1741416667445,-500.0,9.315e-05,2]
[355638184,1741416667455,-1127.72,9.315e-05,2]
[355638185,1741416667464,-545.66005295,9.315e-05,2]
[355638186,1741416667474,-500.0,9.315e-05,2]
[355638187,1741416667483,-911.24,9.315e-05,2]
[355638188,1741416667492,-1244.21,9.315e-05,2]
[355638189,1741416667502,-940.27,9.315e-05,2]
[355638190,1741416667515,-623.55793434,9.315e-05,2]
[355638191,1741416667524,-1141.82,9.315e-05,2]
[355638192,1741416667533,-4057.4,9.315e-05,2]
[355638193,1741416667543,-500.0,9.315e-05,2]
[355638194,1741416667553,-949.87,9.315e-05,2]
[355638195,1741416667562,-882.01,9.315e-05,2]
[355638196,1741416667571,-1044.29,9.315e-05,2]
[355638197,1741416667581,-1391.97,9.315e-05,2]
[355638198,1741416667591,-500.0,9.315e-05,2]
[355638199,1741416667601,-987.8,9.315e-05,2]
[355638200,1741416667611,-165.503875,9.315e-05,2]
[355638201,1741416667620,-1503.6,9.315e-05,2]
[355638202,1741416667630,-2071.12,9.315e-05,2]
[355638203,1741416667639,-1739.36,9.315e-05,2]
[355638204,1741416667649,-788.3,9.315e-05,2]
[355638205,1741416667658,-500.0,9.315e-05,2]
[355638206,1741416667667,-500.0,9.315e-05,2]
[355638207,1741416667677,-500.0,9.315e-05,2]
[355638208,1741416667686,-500.0,9.315e-05,2]
[355638209,1741416667695,-812.07,9.315e-05,2]
[355638210,1741416667704,-1266.75,9.315e-05,2]
[355638211,1741416667713,-770.03,9.315e-05,2]
[355638212,1741416667722,-2243.45,9.315e-05,2]
[355638213,1741416667731,-1162.87,9.315e-05,2]
[355638214,1741416667741,-1597.68,9.315e-05,2]
[355638215,1741416667750,-1405.97,9.315e-05,2]
[355638216,1741416667759,-620.77603487,9.315e-05,2]
[355638217,1741416667768,-821.99,9.315e-05,2]
[355638218,1741416667777,-1889.14,9.315e-05,2]
[355638219,1741416667786,-570.9,9.315e-05,2]
[355638220,1741416667796,-2278.07,9.315e-05,2]
[355638221,1741416667805,-468.10296567,9.315e-05,2]
[355638222,1741416667814,-2472.22,9.315e-05,2]
[355638223,1741416667825,-912.18,9.315e-05,2]
[355638224,1741416667834,-1325.83,9.315e-05,2]
[355638225,1741416667843,-841.46,9.315e-05,2]
[355638226,1741416667852,-2543.0,9.315e-05,2]
[355638227,1741416667861,-553.36,9.315e-05,2]
[355638228,1741416667870,-2187.11,9.315e-05,2]
[355638229,1741416667879,-936.52,9.315e-05,2]
[355638230,1741416667888,-517.22093397,9.315e-05,2]
[355638231,1741416667897,-500.36,9.315e-05,2]
[355638232,1741416667906,-500.0,9.315e-05,2]
[355638233,1741416667916,-500.0,9.315e-05,2]
[355638234,1741416667925,-2236.97,9.315e-05,2]
[355638235,1741416667934,-223.47037048,9.315e-05,2]
[355638236,1741416667943,-500.0,9.315e-05,2]
[355638237,1741416667952,-1971.62,9.315e-05,2]
[355638238,1741416667961,-1497.0,9.315e-05,2]
[355638239,1741416667970,-596.15,9.315e-05,2]
[355638240,1741416667979,-824.23,9.315e-05,2]
[355638241,1741416667987,-873.61,9.315e-05,2]
[355638242,1741416667996,-1114.88,9.315e-05,2]
[355638243,1741416668005,-500.0,9.315e-05,2]
[355638244,1741416668015,-2370.29,9.315e-05,2]
[355638245,1741416668024,-1572.94,9.315e-05,2]
[355638246,1741416668032,-704.4,9.315e-05,2]
[355638247,1741416668041,-570.51132543,9.315e-05,2]
[355638248,1741416668051,-500.0,9.315e-05,2]
[355638249,1741416668060,-1111.98,9.315e-05,2]
[355638250,1741416668070,-2355.58,9.315e-05,2]
[355638251,1741416668085,-892.89,9.315e-05,2]
[355638252,1741416668094,-660.15,9.315e-05,2]
[355638253,1741416668103,-500.0,9.315e-05,2]
[355638254,1741416668113,-1409.79,9.315e-05,2]
[355638255,1741416668122,-1478.09,9.315e-05,2]
[355638256,1741416668131,-500.0,9.315e-05,2]
[355638257,1741416668140,-1231.91,9.315e-05,2]
[355638258,1741416668149,-500.0,9.315e-05,2]
[355638259,1741416668158,-1617.96,9.315e-05,2]
[355638260,1741416668168,-603.84,9.315e-05,2]
[355638261,1741416668177,-500.0,9.315e-05,2]
[355638262,1741416668187,-1567.28,9.315e-05,2]
[355638263,1741416668198,-1207.1,9.315e-05,2]
[355638264,1741416668217,-2350.06,9.315e-05,2]
[355638265,1741416668229,-686.59,9.315e-05,2]
[355638266,1741416668238,-2603.93,9.315e-05,2]
[355638267,1741416668247,-1154.16,9.315e-05,2]
[355638268,1741416668256,-2865.86,9.315e-05,2]
[355638269,1741416668273,-500.0,9.315e-05,2]
[355638270,1741416668426,-3026.37,9.315e-05,2]
[355638271,1741416668442,-3731.1,9.315e-05,2]
[355638272,1741416668451,-500.0,9.315e-05,2]
[355638273,1741416668460,-1359.66,9.315e-05,2]
[355638274,1741416668469,-899.19,9.315e-05,2]
[355638275,1741416668479,-2353.05,9.315e-05,2]
[355638276,1741416668488,-854.0,9.315e-05,2]
[355638277,1741416668496,-500.0,9.315e-05,2]
[355638278,1741416668506,-2238.1,9.315e-05,2]
[355638279,1741416668518,-1507.29,9.315e-05,2]
[355638280,1741416668527,-2906.82,9.315e-05,2]
[355638281,1741416668536,-165.503875,9.315e-05,2]
[355638282,1741416668545,-500.0,9.315e-05,2]
[355638283,1741416668554,-649.9173693,9.315e-05,2]
[355638284,1741416668563,-500.0,9.315e-05,2]
[355638285,1741416668572,-1126.39,9.315e-05,2]
[355638286,1741416668580,-500.0,9.315e-05,2]
[355638287,1741416668591,-5722.19,9.315e-05,2]
[355638288,1741416668600,-5008.42,9.315e-05,2]
[355638289,1741416668609,-4308.08,9.315e-05,2]
[355638290,1741416668619,-500.0,9.315e-05,2]
[355638291,1741416668628,-651.81,9.315e-05,2]
[355638292,1741416668636,-500.0,9.315e-05,2]
[355638293,1741416668645,-1235.97,9.315e-05,2]
[355638294,1741416668655,-768.15,9.315e-05,2]
[355638295,1741416668664,-3940.36,9.315e-05,2]
[355638296,1741416668674,-500.0,9.315e-05,2]
[355638297,1741416668683,-6455.74,9.315e-05,2]
[355638298,1741416668692,-1117.99,9.315e-05,2]
[355638299,1741416668701,-736.61,9.315e-05,2]
[355638300,1741416668710,-3980.85,9.315e-05,2]
[355638301,1741416668720,-5336.18,9.315e-05,2]
[355638302,1741416668729,-815.72,9.315e-05,2]
[355638303,1741416668738,-4032.99,9.315e-05,2]
[355638304,1741416668747,-617.76,9.315e-05,2]
[355638305,1741416668756,-500.0,9.315e-05,2]
[355638306,1741416668767,-3347.04,9.315e-05,2]
[355638307,1741416668777,-2011.41,9.315e-05,2]
[355638308,1741416668786,-500.0,9.315e-05,2]
[355638309,1741416668796,-2246.26,9.315e-05,2]
[355638310,1741416668806,-1587.4,9.315e-05,2]
[355638311,1741416668815,-11642.79,9.315e-05,2]
[355638312,1741416668825,-500.0,9.315e-05,2]
[355638313,1741416668834,-769.16,9.315e-05,2]
[355638314,1741416668843,-500.0,9.315e-05,2]
[355638315,1741416668853,-3483.72,9.315e-05,2]
[355638316,1741416668863,-3892.4,9.315e-05,2]
[355638317,1741416668872,-500.0,9.315e-05,2]
[355638318,1741416668882,-500.0,9.315e-05,2]
[355638319,1741416668891,-464.33590568,9.315e-05,2]
[355638320,1741416668901,-5398.29,9.315e-05,2]
[355638321,1741416668910,-500.0,9.315e-05,2]
[355638322,1741416668919,-1001.55,9.315e-05,2]
[355638323,1741416668929,-500.0,9.315e-05,2]
[355638324,1741416668937,-969.97,9.315e-05,2]
[355638325,1741416668946,-8294.5,9.315e-05,2]
[355638326,1741416668955,-3434.58,9.315e-05,2]
[355638327,1741416668964,-1616.03,9.315e-05,2]
[355638328,1741416668973,-1339.47,9.315e-05,2]
[355638329,1741416668983,-3721.4,9.315e-05,2]
[355638330,1741416668992,-1421.06,9.315e-05,2]
[355638331,1741416669001,-948.2,9.315e-05,2]
[355638332,1741416669012,-13143.98,9.315e-05,2]
[355638333,1741416669021,-500.0,9.315e-05,2]
[355638334,1741416669030,-1045.68,9.315e-05,2]
[355638335,1741416669039,-1665.61,9.315e-05,2]
[355638336,1741416669048,-500.0,9.315e-05,2]
[355638337,1741416669058,-2850.6,9.315e-05,2]
[355638338,1741416669068,-500.0,9.315e-05,2]
[355638339,1741416669077,-500.0,9.315e-05,2]
[355638340,1741416669087,-1452.41,9.315e-05,2]
[355638341,1741416669096,-1087.27,9.315e-05,2]
[355638342,1741416669106,-1167.28,9.315e-05,2]
[355638343,1741416669115,-3041.96,9.315e-05,2]
[355638344,1741416669125,-4753.08,9.315e-05,2]
[355638345,1741416669135,-751.83,9.315e-05,2]
[355638346,1741416669145,-1992.23,9.315e-05,2]
[355638347,1741416669155,-1164.6,9.315e-05,2]
[355638348,1741416669164,-694.48,9.315e-05,2]
[355638349,1741416669174,-500.0,9.315e-05,2]
[355638350,1741416669183,-500.0,9.315e-05,2]
[355638351,1741416669194,-2941.33,9.315e-05,2]
[355638352,1741416669204,-1894.5,9.315e-05,2]
[355638353,1741416669213,-5940.7,9.315e-05,2]
[355638354,1741416669223,-1017.04,9.315e-05,2]
[355638355,1741416669233,-1815.2,9.315e-05,2]
[355638356,1741416669244,-500.0,9.315e-05,2]
[355638357,1741416669254,-528.74,9.315e-05,2]
[355638358,1741416669266,-6747.11,9.315e-05,2]
[355638359,1741416669276,-615.12,9.315e-05,2]
[355638360,1741416669285,-455.22798606,9.315e-05,2]
[355638361,1741416669295,-500.0,9.315e-05,2]
[355638362,1741416669304,-500.0,9.315e-05,2]
[355638363,1741416669313,-4517.93,9.315e-05,2]
[355638364,1741416669323,-500.0,9.315e-05,2]
[355638365,1741416669333,-4854.12,9.315e-05,2]
[355638366,1741416669343,-500.0,9.315e-05,2]
[355638367,1741416669353,-500.0,9.315e-05,2]
[355638368,1741416669363,-902.59,9.315e-05,2]
[355638369,1741416669372,-1274.69,9.315e-05,2]
[355638370,1741416669382,-2552.61,9.315e-05,2]
[355638371,1741416669391,-3005.31,9.315e-05,2]
[355638372,1741416669401,-500.0,9.315e-05,2]
[355638373,1741416669411,-703.09,9.315e-05,2]
[355638374,1741416669420,-500.0,9.315e-05,2]
[355638375,1741416669430,-500.0,9.315e-05,2]
[355638376,1741416669439,-6062.62,9.315e-05,2]
[355638377,1741416669448,-500.0,9.315e-05,2]
[355638378,1741416669458,-839.95,9.315e-05,2]
[355638379,1741416669468,-500.0,9.315e-05,2]
[355638380,1741416669477,-7291.25,9.315e-05,2]
[355638381,1741416669488,-1091.74,9.315e-05,2]
[355638382,1741416669498,-500.0,9.315e-05,2]
[355638383,1741416669511,-2233.36,9.315e-05,2]
[355638384,1741416669521,-1304.23,9.315e-05,2]
[355638385,1741416669531,-500.0,9.315e-05,2]
[355638386,1741416669541,-1439.31,9.315e-05,2]
[355638387,1741416669552,-500.0,9.315e-05,2]
[355638388,1741416669562,-2844.0,9.315e-05,2]
[355638389,1741416669571,-500.0,9.315e-05,2]
[355638390,1741416669581,-1327.52,9.315e-05,2]
[355638391,1741416669593,-500.0,9.315e-05,2]
[355638392,1741416669603,-500.0,9.315e-05,2]
[355638393,1741416669613,-500.0,9.315e-05,2]
[355638394,1741416669623,-1931.09,9.315e-05,2]
[355638395,1741416669633,-4505.17,9.315e-05,2]
[355638396,1741416669643,-1836.18,9.315e-05,2]
[355638397,1741416669653,-3165.59,9.315e-05,2]
[355638398,1741416669664,-3080.74,9.315e-05,2]
[355638399,1741416669673,-500.0,9.315e-05,2]
[355638400,1741416669683,-500.0,9.315e-05,2]
[355638401,1741416669693,-500.0,9.315e-05,2]
[355638402,1741416669703,-500.0,9.315e-05,2]
[355638403,1741416669712,-1611.75,9.315e-05,2]
[355638404,1741416669722,-3526.46,9.315e-05,2]
[355638405,1741416669732,-500.0,9.315e-05,2]
[355638406,1741416669742,-4131.86,9.315e-05,2]
[355638407,1741416669755,-612.603644,9.315e-05,2]
[355638408,1741416669767,-5639.67,9.315e-05,2]
[355638409,1741416669776,-500.0,9.315e-05,2]
[355638410,1741416669785,-11555.12,9.315e-05,2]
[355638411,1741416669793,-1050.07,9.315e-05,2]
[355638412,1741416669803,-7955.67,9.315e-05,2]
[355638413,1741416669812,-500.0,9.315e-05,2]
[355638414,1741416669821,-500.0,9.315e-05,2]
[355638415,1741416669830,-1540.52,9.315e-05,2]
[355638416,1741416669839,-500.0,9.315e-05,2]
[355638417,1741416669848,-553.14,9.315e-05,2]
[355638418,1741416669857,-3457.27,9.315e-05,2]
[355638419,1741416669866,-500.0,9.315e-05,2]
[355638420,1741416669876,-1458.07,9.315e-05,2]
[355638421,1741416669886,-4318.99,9.315e-05,2]
[355638422,1741416669895,-2221.86,9.315e-05,2]
[355638423,1741416669904,-500.0,9.315e-05,2]
[355638424,1741416669913,-607.05,9.315e-05,2]
[355638425,1741416669922,-20024.51,9.315e-05,2]
[355638426,1741416669932,-5038.55,9.315e-05,2]
[355638427,1741416669941,-3543.88,9.315e-05,2]
[355638428,1741416669952,-500.0,9.315e-05,2]
[355638429,1741416669961,-1535.82,9.315e-05,2]
[355638430,1741416669970,-500.0,9.315e-05,2]
[355638431,1741416669980,-500.0,9.315e-05,2]
[355638432,1741416669989,-232.52,9.315e-05,2]
[355638433,1741416669999,-500.0,9.315e-05,2]
[355638434,1741416670009,-500.0,9.315e-05,2]
[355638435,1741416670020,-2888.16,9.315e-05,2]
[355638436,1741416670030,-3385.47,9.315e-05,2]
[355638437,1741416670039,-500.0,9.315e-05,2]
[355638438,1741416670049,-3566.52,9.315e-05,2]
[355638439,1741416670058,-2517.7,9.315e-05,2]
[355638440,1741416670068,-500.0,9.315e-05,2]
[355638441,1741416670078,-3095.36,9.315e-05,2]
[355638442,1741416670087,-6855.7,9.315e-05,2]
[355638443,1741416670096,-500.0,9.315e-05,2]
[355638444,1741416670105,-500.0,9.315e-05,2]
[355638445,1741416670113,-5573.12,9.315e-05,2]
[355638446,1741416670122,-1221.14,9.315e-05,2]
[355638447,1741416670131,-7229.77,9.315e-05,2]
[355638448,1741416670140,-710.77,9.315e-05,2]
[355638449,1741416670149,-2235.77,9.315e-05,2]
[355638450,1741416670157,-500.0,9.315e-05,2]
[355638451,1741416670166,-500.0,9.315e-05,2]
[355638452,1741416670175,-4334.01,9.315e-05,2]
[355638453,1741416670185,-1636.54,9.315e-05,2]
[355638454,1741416670194,-1766.91,9.315e-05,2]
[355638455,1741416670203,-500.0,9.315e-05,2]
[355638456,1741416670213,-933.37,9.315e-05,2]
[355638457,1741416670222,-1698.51,9.315e-05,2]
[355638458,1741416670231,-2900.2,9.315e-05,2]
[355638459,1741416670240,-7792.67,9.315e-05,2]
[355638460,1741416670250,-12047.07,9.315e-05,2]
[355638461,1741416670259,-2595.39,9.315e-05,2]
[355638462,1741416670268,-670.32,9.315e-05,2]
[355638463,1741416670278,-500.0,9.315e-05,2]
[355638464,1741416670287,-571.74,9.315e-05,2]
[355638465,1741416670297,-500.0,9.315e-05,2]
[355638466,1741416670305,-500.0,9.315e-05,2]
[355638467,1741416670314,-2310.08,9.315e-05,2]
[355638468,1741416670323,-1350.51,9.315e-05,2]
[355638469,1741416670332,-3418.48,9.315e-05,2]
[355638470,1741416670341,-25520.53,9.315e-05,2]
[355638471,1741416670350,-500.0,9.315e-05,2]
[355638472,1741416670358,-4156.48,9.315e-05,2]
[355638473,1741416670367,-500.0,9.315e-05,2]
[355638474,1741416670376,-500.0,9.315e-05,2]
[355638475,1741416670386,-2100.65,9.315e-05,2]
[355638476,1741416670395,-500.0,9.315e-05,2]
[355638477,1741416670404,-755.87,9.315e-05,2]
[355638478,1741416670413,-2323.94,9.315e-05,2]
[355638479,1741416670422,-3050.75,9.315e-05,2]
[355638480,1741416670430,-1874.37,9.315e-05,2]
[355638481,1741416670439,-2340.5,9.315e-05,2]
[355638482,1741416670448,-973.25,9.315e-05,2]
[355638483,1741416670457,-1560.78,9.315e-05,2]
[355638484,1741416670466,-1557.78,9.315e-05,2]
[355638485,1741416670475,-1356.78,9.315e-05,2]
[355638486,1741416670484,-2554.2,9.315e-05,2]
[355638487,1741416670493,-500.0,9.315e-05,2]
[355638488,1741416670504,-151.21,9.315e-05,2]
[355638489,1741416670516,-500.0,9.315e-05,2]
[355638490,1741416670525,-500.0,9.315e-05,2]
[355638491,1741416670534,-3683.41,9.315e-05,2]
[355638492,1741416670543,-2494.61,9.315e-05,2]
[355638493,1741416670553,-540.20393913,9.315e-05,2]
[355638494,1741416670563,-1697.09,9.315e-05,2]
[355638495,1741416670572,-572.07,9.315e-05,2]
[355638496,1741416670584,-500.0,9.315e-05,2]
[355638497,1741416670593,-1267.56,9.315e-05,2]
[355638498,1741416670603,-883.13,9.315e-05,2]
[355638499,1741416670613,-1954.02,9.315e-05,2]
[355638500,1741416670622,-1779.82,9.315e-05,2]
[355638501,1741416670631,-500.0,9.315e-05,2]
[355638502,1741416670640,-1223.04,9.315e-05,2]
[355638503,1741416670649,-500.0,9.315e-05,2]
[355638504,1741416670658,-1003.35,9.315e-05,2]
[355638505,1741416670667,-242.6,9.315e-05,2]
[355638506,1741416670676,-334.0,9.32e-05,2]
[355638507,1741416670687,-433.64969305,9.405e-05,2]
[355638508,1741416670696,-1066.0286912,9.425e-05,2]
[355638509,1741416670705,-1932.17705632,9.534e-05,2]
[355638510,1741416670713,-334.0,9.54e-05,2]
[355638511,1741416670723,-2500.0,9.543e-05,2]
[355638512,1741416670732,-2500.0,9.543e-05,2]
[355638513,1741416670740,-150.0,9.562e-05,7]
[355638514,1741416670749,-2506.35,9.588e-05,2]